Posting Date,Expenditure Area,Supplier,Reason for Expense ,Line Net Amount,Expense Type
28-Oct-19,Culture & Environment Services,Abacus Industrial Safety,Karabiners for Town Hall balcony banners,12.62,Advertising/Publicity
07-Nov-19,Culture & Environment Services,Absolute,Table cloths,226.80,Equipment / Furniture / Materials
08-Nov-19,Culture & Environment Services,Absolute,Purchase of bath towels for production use.,318.44,Equipment / Furniture / Materials
12-Apr-19,Culture & Environment Services,Agri-Hire Ltd,Tractor Hire,240.00,Capital Expenditure
07-Nov-19,Culture & Environment Services,Ajax Domestic Spares,Repairs to floor cleaning machine,722.54,Cleaning Supplies
27-Nov-19,Culture & Environment Services,Amazon.Co.Uk,Samsung tablet for refuse,165.83,Computer Equipment - Purchase
14-Nov-19,Culture & Environment Services,Amazon.Co.Uk,kettle,20.82,Equipment / Furniture / Materials
15-Nov-19,Culture & Environment Services,Amazon.Co.Uk,Key Cabinet - Christchurch Hub,63.34,Materials and Supplies - Miscellaneous
18-Nov-19,Culture & Environment Services,Amz*festive Lights,Outdoor Christmas Tree Lights - Christchurch Hub,149.99,Materials and Supplies - Miscellaneous
28-Oct-19,Culture & Environment Services,Amznmktplace,Case and lead for computer ,18.19,Computer Equipment - Purchase
11-Nov-19,Culture & Environment Services,Amznmktplace,tablet mount,10.40,Direct Transport Costs
23-Oct-19,Culture & Environment Services,Amznmktplace,stars,10.71,Equipment / Furniture / Materials
12-Nov-19,Culture & Environment Services,Amznmktplace,4 Pin Square light bulbs,10.02,Equipment / Furniture / Materials
13-Nov-19,Culture & Environment Services,Amznmktplace,Jugs for parties,18.25,Equipment / Furniture / Materials
14-Nov-19,Culture & Environment Services,Amznmktplace,Christmas parties,7.83,Equipment / Furniture / Materials
15-Nov-19,Culture & Environment Services,Amznmktplace,Velcro & Command Hooks for Christmas Parties,21.27,Equipment / Furniture / Materials
26-Nov-19,Culture & Environment Services,Amznmktplace,Christmas parties - 1m copper lights & selfie props,8.32,Equipment / Furniture / Materials
26-Nov-19,Culture & Environment Services,Amznmktplace,Christmas parties - 1m copper lights & selfie props,15.99,Equipment / Furniture / Materials
04-Nov-19,Culture & Environment Services,Amznmktplace,Stationery for Apprentice - Landscape Team,21.75,Miscellaneous Stock  - Purchases
09-Jul-19,Culture & Environment Services,Amznmktplace Amazon.Co.Uk,Clickers,20.40,Equipment / Furniture / Materials
23-Oct-19,Culture & Environment Services,Amznmktplace Amazon.Co.Uk,Gym Ball for Profiles,10.82,Equipment / Furniture / Materials
12-Nov-19,Culture & Environment Services,Amznmktplace Amazon.Co.Uk,Coffee for Bearers room,26.20,Equipment / Furniture / Materials
18-Nov-19,Culture & Environment Services,Amznmktplace Amazon.Co.Uk,Milk Jiggers for bearers room,4.41,Equipment / Furniture / Materials
27-Nov-19,Culture & Environment Services,Amznmktplace Amazon.Co.Uk,Fishing wire for Town Hall Christmas Parties,2.49,Equipment / Furniture / Materials
28-Nov-19,Culture & Environment Services,Amznmktplace Amazon.Co.Uk,Replacement waterproof case for on course phones,3.99,Equipment / Furniture / Materials
28-Nov-19,Culture & Environment Services,Amznmktplace Amazon.Co.Uk,Velcro for Town Hall Christmas Parties,6.98,Equipment / Furniture / Materials
06-Nov-19,Culture & Environment Services,Amznmktplace Amazon.Co.Uk,Various stickers for Ark - Park Patrol,5.73,Materials and Supplies - Miscellaneous
04-Oct-19,Culture & Environment Services,Amznmktplace Amazon.Co.Uk,stars,7.33,Stationery
18-Nov-19,Culture & Environment Services,Amznmktplace Amazon.Co.Uk,Diaries and wall planner,17.80,Stationery
14-Nov-19,Culture & Environment Services,Anchor Safety Llp,Trousers ,24.15,Clothing / Uniform & Laundry
15-Nov-19,Culture & Environment Services,Anchor Safety Llp,Trousers ,53.25,Clothing / Uniform & Laundry
11-Nov-19,Culture & Environment Services,Anglia Locksmiths/,key cutting for bin stores,24.80,Materials and Supplies - Miscellaneous
20-Nov-19,Culture & Environment Services,Anglian Catering Equip,Hire of chest freezer for Snow Patrol,79.98,Equipment Hire
27-Nov-19,Culture & Environment Services,Argos Ipswich Carr Street,Electric Time Clock,12.49,Equipment / Furniture / Materials
09-Oct-19,Culture & Environment Services,Argos Ltd,Extension Leads,22.50,Equipment / Furniture / Materials
07-Nov-19,Culture & Environment Services,Argos Ltd,Router for back stage - Annie ,33.32,Equipment / Furniture / Materials
12-Nov-19,Culture & Environment Services,Argos Ltd,CD Player - For Safety Announcement Gala,37.57,Equipment / Furniture / Materials
02-Sep-19,Culture & Environment Services,Argos Ltd,"Dressing Room Shower heads, piping and accessories",69.97,Fixtures & Fittings
13-Jun-19,Culture & Environment Services,Asda Stores 4278,Catering Food order - Pickwick Room,89.13,Catering/Beverages
17-Jun-19,Culture & Environment Services,Asda Stores 4278,Meeting Catering,36.00,Catering/Beverages
01-Jul-19,Culture & Environment Services,Asda Stores 4278,"Bread, Milk, Lemons, Limes",18.92,Catering/Beverages
08-Jul-19,Culture & Environment Services,Asda Stores 4278,Show catering - recharge,65.86,Catering/Beverages
30-Aug-19,Culture & Environment Services,Asda Stores 4278,Shows Catering Order - Recharge,109.99,Catering/Beverages
31-Oct-19,Culture & Environment Services,Asda Stores 4278,Show Catering Order - recharge,104.78,Catering/Beverages
11-Nov-19,Culture & Environment Services,Asda Stores 4278,Catering order - Recharge,54.33,Catering/Beverages
11-Nov-19,Culture & Environment Services,Asda Stores 4278,Meeting Catering,34.78,Catering/Beverages
23-Aug-19,Culture & Environment Services,Asda Superstore,Event Catering,70.54,Catering/Beverages
30-Aug-19,Culture & Environment Services,Asda Superstore,Meeting Catering,45.82,Catering/Beverages
18-Nov-19,Culture & Environment Services,Asda Superstore,Drinks for Bar,24.17,Catering/Beverages
25-Nov-19,Culture & Environment Services,Asda Superstore,Dietary Food for Developer Awards 51091,5.50,Catering/Beverages
28-Nov-19,Culture & Environment Services,Asda Superstore,food for conference 51197,9.65,Catering/Beverages
25-Nov-19,Culture & Environment Services,B & M Retail,Christmas baubbles,25.04,Equipment / Furniture / Materials
25-Nov-19,Culture & Environment Services,B & M Retail,hooks for wreathes,1.67,Equipment / Furniture / Materials
11-Nov-19,Culture & Environment Services,B & Q 1315,Drill + bits / PPE for winter dressing / danger sticker,135.51,Equipment / Furniture / Materials
14-Nov-19,Culture & Environment Services,B & Q 1315,Shower curtain and rings for broken shower door,16.25,Equipment / Furniture / Materials
30-Jul-19,Culture & Environment Services,B & Q 1315,Purchase of paint for GSCC goals,26.93,Materials and Supplies - Miscellaneous
08-Nov-19,Culture & Environment Services,B & Q 1315,Plants for Chantry Planters - CHANTRY HUB,14.17,Materials and Supplies - Miscellaneous
21-Nov-19,Culture & Environment Services,B & Q 1315,Bulbs for the Park - CHANTRY PARK,33.75,Materials and Supplies - Miscellaneous
25-Nov-19,Culture & Environment Services,B & Q 1315,Purchase of spanner for Rangers,9.94,Materials and Supplies - Miscellaneous
04-Nov-19,Culture & Environment Services,B & Q 1315,Cement - CHANTRY FENCE INSTALLATION,89.70,Miscellaneous Stock  - Purchases
04-Nov-19,Culture & Environment Services,B & Q 1315,Cement & Postcrete - CHANTRY FENCE INSTALLATION,58.67,Miscellaneous Stock  - Purchases
04-Nov-19,Culture & Environment Services,B & Q 1315,Postcrete - CHANTRY FENCE INSTALLATION,70.50,Miscellaneous Stock  - Purchases
07-Nov-19,Culture & Environment Services,B & Q 1315,Postcrete - FENCE AT CHANTRY - Landscape Team,59.37,Miscellaneous Stock  - Purchases
08-Nov-19,Culture & Environment Services,B & Q 1315,Decking for signage on CHANTRY FENCING,29.17,Miscellaneous Stock  - Purchases
12-Nov-19,Culture & Environment Services,B & Q 1315,Postcrete - CCP FENCING - Landscape Team,78.20,Miscellaneous Stock  - Purchases
14-Nov-19,Culture & Environment Services,B & Q 1315,Postcrete - CCP FENCING - Landscape Team,75.17,Miscellaneous Stock  - Purchases
15-Nov-19,Culture & Environment Services,B & Q 1315,Postcrete - CCP FENCING - Landscape Team,75.17,Miscellaneous Stock  - Purchases
19-Nov-19,Culture & Environment Services,B & Q 1315,Repair Macadam - CCP GYM - Landscape Team,139.83,Miscellaneous Stock  - Purchases
19-Nov-19,Culture & Environment Services,B & Q 1315,Repair Macadam/joining spray - CCP GYM - Landscape Team,98.39,Miscellaneous Stock  - Purchases
19-Nov-19,Culture & Environment Services,B & Q 1315,Tylon Tape/wood screw set - Alexandra Pk benches,68.96,Miscellaneous Stock  - Purchases
21-Nov-19,Culture & Environment Services,B & Q 1315,Measuring tape - LANDSCAPE TEAM,14.25,Miscellaneous Stock  - Purchases
26-Nov-19,Culture & Environment Services,B & Q 1315,Padlock for Container - Landscape Team,14.87,Miscellaneous Stock  - Purchases
26-Nov-19,Culture & Environment Services,B&m Retail,Charger for new phone - Landscape Team,13.32,Miscellaneous Stock  - Purchases
23-Aug-19,Culture & Environment Services,B&m Retail,Equipment Buckets,26.67,Non Contracted_Professional Services
18-Nov-19,Culture & Environment Services,B&q Direct,shower curtains,29.17,Fixtures & Fittings
04-Nov-19,Culture & Environment Services,Bag Agg Ltd,Type 1 - CHANTRY FENCE - Landscape Team,24.50,Miscellaneous Stock  - Purchases
08-Nov-19,Culture & Environment Services,Bag Agg Ltd,Ballast - GYM EQUIP INSTALLATION - Landscape Team,50.00,Miscellaneous Stock  - Purchases
18-Nov-19,Culture & Environment Services,Bag Agg Ltd,Ballast - CCP BENCH BASE - Landscape Team,25.00,Miscellaneous Stock  - Purchases
20-Nov-19,Culture & Environment Services,Bag Agg Ltd,Ballast - ALEXANDRA PARK BENCH - Landscape Team,37.50,Miscellaneous Stock  - Purchases
20-Nov-19,Culture & Environment Services,Bag Agg Ltd,Ballast - ALEXANDRA PARK BENCH - Landscape Team,37.50,Miscellaneous Stock  - Purchases
06-Nov-19,Culture & Environment Services,Barcham Trees Plc,donation trees,224.67,Miscellaneous Stock  - Purchases
06-Nov-19,Culture & Environment Services,Barcham Trees Plc,donation trees,"1,123.33",Miscellaneous Stock  - Purchases
13-Nov-19,Culture & Environment Services,Barcham Trees Plc,Tree planting scheme ,"1,578.00",Miscellaneous Stock  - Purchases
27-Nov-19,Culture & Environment Services,Booker Limited Ipswich,"Drinks for Bars, trayliners etc",27.97,Catering/Beverages
27-Nov-19,Culture & Environment Services,Booker Limited Ipswich,"Drinks for Bars, trayliners etc",69.75,Materials and Supplies - Miscellaneous
06-Sep-19,Culture & Environment Services,Booker Limited Ipswich,Great East Swim food - Induction day,53.67,Miscellaneous Expenses
06-Nov-19,Culture & Environment Services,Botanica Plant Collectio,donation tree,150.00,Miscellaneous Stock  - Purchases
13-Nov-19,Culture & Environment Services,Bright Acres Tool Hire,Hire of a Turf Cutter - Landscape Team,45.00,Miscellaneous Stock  - Purchases
13-Nov-19,Culture & Environment Services,British Standards,British standard book Electrics on behalf of CH&S,106.00,Publications - Purchase
02-Jul-19,Culture & Environment Services,Buildbase - Ipswich,Purchase of wooden rails for Rangers,73.23,Materials and Supplies - Miscellaneous
18-Nov-19,Culture & Environment Services,Buildbase - Ipswich,"timber for fencing, Ravenswood Tump",372.00,Materials and Supplies - Miscellaneous
08-Nov-19,Culture & Environment Services,Bunzl,Cleaning Products - Christchurch Hub,12.59,Cleaning Supplies
08-Nov-19,Culture & Environment Services,Bunzl,Cleaning supplies for Norse - for Chantry Hub,10.24,Cleaning Supplies
14-Nov-19,Culture & Environment Services,Bunzl,Cleaning supplies for IP Serve cleaners,30.45,Cleaning Supplies
14-Nov-19,Culture & Environment Services,Bunzl,toilet roll and cleaning supplies,169.90,Cleaning Supplies
21-Nov-19,Culture & Environment Services,Bunzl,Toilet roll for Old Foundry Road,166.40,Cleaning Supplies
21-Nov-19,Culture & Environment Services,Bunzl,Toilet roll returned - wrong type ordered for dispenser,-169.90,Cleaning Supplies
28-Nov-19,Culture & Environment Services,Bunzl,cleaning supplies for old foundry road,47.58,Cleaning Supplies
28-Oct-19,Culture & Environment Services,Burton Retail,Staff Uniform,278.53,Clothing / Uniform & Laundry
28-Oct-19,Culture & Environment Services,Burtons,Staff Uniform,148.33,Clothing / Uniform & Laundry
04-Nov-19,Culture & Environment Services,Card Factory,90th Balloons for the Regent,17.50,Equipment / Furniture / Materials
25-Nov-19,Culture & Environment Services,Card Factory,Ticket boxes/tissue paper,6.21,Equipment / Furniture / Materials
20-Nov-19,Culture & Environment Services,Cater4you.Co.Uk,Trays for buffets,287.68,Materials and Supplies - Miscellaneous
07-Nov-19,Culture & Environment Services,Collier&catchpole,Pallet of Cement - Landscape Team,238.00,Miscellaneous Stock  - Purchases
18-Nov-19,Culture & Environment Services,Collier&catchpole,Fixing for bench - BOURNE PARK - Landscape Team,11.78,Miscellaneous Stock  - Purchases
21-Nov-19,Culture & Environment Services,Collier&catchpole,Geotextile Tracking - DUMBARTON REC - Landscape Team,375.00,Miscellaneous Stock  - Purchases
21-Nov-19,Culture & Environment Services,Collier&catchpole,Line Marker - DUMBARTON REC - Landscape Team,38.16,Miscellaneous Stock  - Purchases
21-Nov-19,Culture & Environment Services,Collier&catchpole,Pallet pf cement - DUMBARTON REC - Landscape Team,238.00,Miscellaneous Stock  - Purchases
26-Nov-19,Culture & Environment Services,Collier&catchpole,Pallet of Cement - DUMBARTON REC - Landscape Team,255.00,Miscellaneous Stock  - Purchases
24-Oct-19,Culture & Environment Services,Cpw Locksmiths And Securi,Repairs to Safe in DO's office,95.00,Equipment / Furniture / Materials
05-Nov-19,Culture & Environment Services,Cpw Locksmiths And Securi,Key Cutting,8.33,Equipment / Furniture / Materials
27-Nov-19,Culture & Environment Services,Daily Fresh Store,Dietary Food for Developher Awards 51091,4.78,Catering/Beverages
08-Nov-19,Culture & Environment Services,Dale Sauna Ltd,pool chemicals,694.74,Cleaning Supplies
28-Nov-19,Culture & Environment Services,Defib Pad,1 set of defib pads ( should of brought 2 for a spare set ),36.50,Equipment / Furniture / Materials
27-Nov-19,Culture & Environment Services,Displaysense.Co.Uk,Leaflet racks,27.15,Equipment / Furniture / Materials
20-Nov-19,Culture & Environment Services,Dunelm Ltd,Party water jugs and pencil pot,3.75,Equipment / Furniture / Materials
07-Nov-19,Culture & Environment Services,Dvla Vehicle Tax,vehicle tax for AT57 EKV,262.50,Direct Transport Costs
07-Nov-19,Culture & Environment Services,Dvla Vehicle Tax,Vehicle tax for AV58 NXS,262.50,Direct Transport Costs
07-Nov-19,Culture & Environment Services,Dvla Vehicle Tax,Vehicle Tax for AV58 NYB,262.50,Direct Transport Costs
07-Nov-19,Culture & Environment Services,Dvla Vehicle Tax,Vehicle Tax for AV62 WMD,722.50,Direct Transport Costs
07-Nov-19,Culture & Environment Services,Dvla Vehicle Tax,Vehicle tax for AV62 WME,722.50,Direct Transport Costs
07-Nov-19,Culture & Environment Services,Dvla Vehicle Tax,Vehicle Tax for AY63 ZCF,262.50,Direct Transport Costs
11-Nov-19,Culture & Environment Services,Dvla Vehicle Tax,Vehicle tax for AY63 ZBO,262.50,Direct Transport Costs
11-Nov-19,Culture & Environment Services,Dvla Vehicle Tax,Vehicle Tax for AY63 ZBP,262.50,Direct Transport Costs
15-Nov-19,Culture & Environment Services,Dvla Vehicle Tax,Vehicle Tax for AY63 ZCJ,262.50,Direct Transport Costs
07-Nov-19,Culture & Environment Services,Dvla Vehicle Tax,Vehicle tax for AO64 PFU,262.50,Parks Vehicle Costs
07-Nov-19,Culture & Environment Services,Dvla Vehicle Tax,vehicle tax for FP58 JVF,262.50,Parks Vehicle Costs
18-Nov-19,Culture & Environment Services,Dvla Vehicle Tax,Vehicle Tax for FL58 LBP,262.50,Parks Vehicle Costs
29-Nov-19,Culture & Environment Services,Euroffice.Co.Uk,Flip chart pads x 20,49.83,Equipment / Furniture / Materials
08-Nov-19,Culture & Environment Services,Fast Key Services Limi,Order of replacement keys for pedestal for Town Hall Desk,54.78,Equipment / Furniture / Materials
21-Nov-19,Culture & Environment Services,Firstaid4less.Co.Uk,First Aid Supplies,57.65,Cleaning Supplies
04-Nov-19,Culture & Environment Services,Foxs Chandleries,Skywatch explorer - Christchurch Hub,56.58,Materials and Supplies - Miscellaneous
21-Nov-19,Culture & Environment Services,Green-Tech Ltd,2 x Grazers G1 750ml pre mixed,33.98,Materials and Supplies - Miscellaneous
06-Nov-19,Culture & Environment Services,Gripfixings Ipswich,Bolts - CHANTRY FENCING - Play Inspector,52.92,Miscellaneous Stock  - Purchases
21-Nov-19,Culture & Environment Services,Gripfixings Ipswich,Galv Bracket for bench - ALEXANDRA PARK - Landscape Team,8.20,Miscellaneous Stock  - Purchases
29-Nov-19,Culture & Environment Services,Halfords 0883,Air Freshener for Van - CHRISTCHURCH HUB,3.32,Materials and Supplies - Miscellaneous
18-Nov-19,Culture & Environment Services,Hg Gladwell & Sons,x4 sacks for duckfood - Christchurch Hub,43.30,Materials and Supplies - Miscellaneous
07-Oct-19,Culture & Environment Services,Hmv Retail Ltd,CD's for walk on music during shows,12.50,Equipment / Furniture / Materials
18-Nov-19,Culture & Environment Services,Home Bargains,Fittings for Key Cabinet - Play Area Inspector,5.80,Equipment / Furniture / Materials
12-Nov-19,Culture & Environment Services,Home Bargains,Phone Chargers - Landscape Team,5.80,Miscellaneous Stock  - Purchases
16-Jul-19,Culture & Environment Services,Horticultural Sppls Ltd,Purchase of trre planting items,31.60,Materials and Supplies - Miscellaneous
05-Nov-19,Culture & Environment Services,Hussey Knights Ltd,Play Atea Plans for Dumbarton Road Rec Installation,75.92,Miscellaneous Stock  - Purchases
18-Nov-19,Culture & Environment Services,Ibc Events,Test Purchase,0.01,Catering/Beverages
18-Nov-19,Culture & Environment Services,Ibc Events,Test Purchase,-0.01,Catering/Beverages
16-Jul-19,Culture & Environment Services,Id And C UK Ltd,Residents Access Permits,"1,161.67",Non Contracted_Professional Services
12-Nov-19,Culture & Environment Services,Ipswich Pa Centre,New head piece for main hall sound system.,31.66,Equipment / Furniture / Materials
29-Nov-19,Culture & Environment Services,Ipswich Pa Centre,New CD player for Main Hall sound system.,240.00,Equipment / Furniture / Materials
25-Nov-19,Culture & Environment Services,Ipswich Tourist In,Hampers and cards for panto,101.33,Equipment / Furniture / Materials
12-Nov-19,Culture & Environment Services,Ispwich Ranso,Work Boots - Landscape Team,31.66,Clothing / Uniform & Laundry
02-Aug-19,Culture & Environment Services,Ispwich Ranso,Cable ties for GSCC goals,30.21,Materials and Supplies - Miscellaneous
02-Oct-19,Culture & Environment Services,Ispwich Ranso,Purchase of knives and tyre inflator for Rangers,49.94,Materials and Supplies - Miscellaneous
04-Nov-19,Culture & Environment Services,Ispwich Ranso,Digital Detector - Park Patrol,29.99,Materials and Supplies - Miscellaneous
14-Nov-19,Culture & Environment Services,Ispwich Ranso,Fat tape - Landscape Team,13.32,Miscellaneous Stock  - Purchases
02-Sep-19,Culture & Environment Services,Iz *patryk Krzysztofik,Alarm call out taxi,5.75,Subsistence & Conference/Seminar / Event Expenses
29-Oct-19,Culture & Environment Services,Jewson Ltd,Cable ties & NoviPro FFP2 Moulded - 5 Pack,17.63,Materials and Supplies - Miscellaneous
22-Nov-19,Culture & Environment Services,Kiln Farm Nursery,Various Flowers/Plants - CHRISTCHURCH HUB,33.17,Materials and Supplies - Miscellaneous
27-Nov-19,Culture & Environment Services,Kiln Farm Nursery,Various flowers/plants - CHRISTCHURCH HUB,115.16,Materials and Supplies - Miscellaneous
18-Jul-19,Culture & Environment Services,Kings,Key cutting for GSCC staff,29.17,Materials and Supplies - Miscellaneous
21-Aug-19,Culture & Environment Services,Kings,Key cutting for Holywells,4.17,Materials and Supplies - Miscellaneous
08-Nov-19,Culture & Environment Services,Kings,Key cutting,24.17,Materials and Supplies - Miscellaneous
22-Nov-19,Culture & Environment Services,Lbs Worldwide Ltd,jute string for bundling wood products,67.50,Equipment / Furniture / Materials
14-Nov-19,Culture & Environment Services,Leisureteq,steam room parts,761.00,Equipment / Furniture / Materials
04-Jul-19,Culture & Environment Services,Lumberjacks,Purchase of timber for Rangers,84.73,Materials and Supplies - Miscellaneous
15-Nov-19,Culture & Environment Services,Lumberjacks,Posts for Tree Planting - CHANTRY HUB,10.33,Materials and Supplies - Miscellaneous
20-Nov-19,Culture & Environment Services,Lumberjacks,Sproughton Landscaping,703.73,Miscellaneous Stock  - Purchases
25-Nov-19,Culture & Environment Services,Lumberjacks,Timber - WHITTON LANE ALLOTMENTS,12.00,Miscellaneous Stock  - Purchases
25-Nov-19,Culture & Environment Services,Lumberjacks,Timber - WHITTON LANE ALLOTMENTS,42.70,Miscellaneous Stock  - Purchases
26-Nov-19,Culture & Environment Services,Lumberjacks,Timber - WHITTON LANE ALLOTMENTS,28.80,Miscellaneous Stock  - Purchases
22-Nov-19,Culture & Environment Services,Machine Mart Ltd,Straps for Trucks - CHANTRY PARK,53.97,Materials and Supplies - Miscellaneous
25-Nov-19,Culture & Environment Services,Machine Mart Web,Tools for techs & FAMS + hose real,91.27,Equipment / Furniture / Materials
24-Jun-19,Culture & Environment Services,Makro Self Service Ipswic,Additional Stock,236.44,Catering/Beverages
09-Jul-19,Culture & Environment Services,Makro Self Service Ipswic,Additional Stock,137.47,Catering/Beverages
12-Aug-19,Culture & Environment Services,Makro Self Service Ipswic,Additional Stock,101.77,Catering/Beverages
23-Sep-19,Culture & Environment Services,Makro Self Service Ipswic,Additional Stock,101.62,Catering/Beverages
21-Oct-19,Culture & Environment Services,Makro Self Service Ipswic,Additional Stock,99.96,Catering/Beverages
07-Nov-19,Culture & Environment Services,Makro Self Service Ipswic,Additional Stock,115.48,Catering/Beverages
01-Nov-19,Culture & Environment Services,Matalan,White Shirts Catering Staff Uniform,43.33,Clothing / Uniform & Laundry
14-Nov-19,Culture & Environment Services,Millets,Karabiners for Town Hall balcony banners,4.50,Advertising/Publicity
18-Nov-19,Culture & Environment Services,Mpd - Ipswich 03,Bulbs,57.32,Parks Vehicle Costs
25-Nov-19,Culture & Environment Services,Murton Global Fruits Ipsw,Celebratory fowers for customer long service (Nsc).,25.00,Specific Campaigns / Projects expenditure
07-Nov-19,Culture & Environment Services,Nelson Potter (Dodnash,Chestnut Paling - CHANTRY FENCING - Landscape Team,271.65,Miscellaneous Stock  - Purchases
08-Nov-19,Culture & Environment Services,Nelson Potter (Dodnash,Chestnut Paling - CHANTRY FENCING - Landscape Team,42.06,Miscellaneous Stock  - Purchases
08-Nov-19,Culture & Environment Services,Nph Group Ipswich,Cable Scanner - LANDSCAPE TEAM,67.10,Miscellaneous Stock  - Purchases
12-Nov-19,Culture & Environment Services,P And R Locksmiths,Locks & keys - CHANTRY FENCING - Landscape Team,124.17,Miscellaneous Stock  - Purchases
04-Nov-19,Culture & Environment Services,Paypal,Window Wanderland Basic Toolkit - Alexandra Ward MAD funding,150.00,Central Area Committee
25-Sep-19,Culture & Environment Services,Paypal,Black Staff Uniform Blouses,116.25,Clothing / Uniform & Laundry
04-Oct-19,Culture & Environment Services,Paypal,Black Staff Uniform Shirts,112.00,Clothing / Uniform & Laundry
30-Aug-19,Culture & Environment Services,Paypal,Additional Cabling - show relay stage,40.82,Equipment / Furniture / Materials
30-Aug-19,Culture & Environment Services,Paypal,Internal Camera and monitors - show relay stage,339.13,Equipment / Furniture / Materials
16-Sep-19,Culture & Environment Services,Paypal,Bracket,49.17,Equipment / Furniture / Materials
16-Sep-19,Culture & Environment Services,Paypal,Tech Office Monitor,190.83,Equipment / Furniture / Materials
04-Nov-19,Culture & Environment Services,Paypal,Booster seat s cushions adults,41.58,Equipment / Furniture / Materials
25-Nov-19,Culture & Environment Services,Paypal,refund of cushions as never received,-41.58,Equipment / Furniture / Materials
09-Jul-19,Culture & Environment Services,Paypal,Dressing Room Furnishings,164.10,Fixtures & Fittings
03-Oct-19,Culture & Environment Services,Paypal,Seating - Dressing Rooms,199.17,Fixtures & Fittings
22-Oct-19,Culture & Environment Services,Paypal,Teufelgerger Oceon Eye hooks & Arb climbing rope,81.90,Materials and Supplies - Miscellaneous
06-Nov-19,Culture & Environment Services,Paypal,Oregan & Stihl chains,209.92,Materials and Supplies - Miscellaneous
21-Nov-19,Culture & Environment Services,Post Office Counter,Posting two Annie hoodies back,14.50,Equipment / Furniture / Materials
11-Oct-19,Culture & Environment Services,Post Office Counter,Return of shop items,13.85,Materials and Supplies - Miscellaneous
13-Nov-19,Culture & Environment Services,Post Office Counter,cd of cctv footage postage,5.50,Miscellaneous Expenses
13-Nov-19,Culture & Environment Services,Poundland Ltd 1344,Milk for 50+,2.00,Catering/Beverages
04-Nov-19,Culture & Environment Services,Poundland Ltd 1344,Refreshments for RPO via Keith,15.25,Equipment / Furniture / Materials
11-Nov-19,Culture & Environment Services,Poundland Ltd 1344,milk 50+,1.00,Equipment / Furniture / Materials
27-Nov-19,Culture & Environment Services,Poundland Ltd 1344,Milk for 50+,1.00,Equipment / Furniture / Materials
11-Nov-19,Culture & Environment Services,Poundland Ltd 1719,Drain Unblocker,0.83,Cleaning Supplies
14-Oct-19,Culture & Environment Services,Poundstretcher 268,Batteries for tech dept,16.60,Materials and Supplies - Miscellaneous
08-Nov-19,Culture & Environment Services,Premier Farnell,wresthes for christmas,141.61,Equipment / Furniture / Materials
14-Nov-19,Culture & Environment Services,Protect Direct,safety boots & gloves for volunteers,175.46,Equipment / Furniture / Materials
08-Nov-19,Culture & Environment Services,Ridgeons Atc Ipswich,measuring wheel to replace non working ones,83.30,Miscellaneous Stock  - Purchases
12-Nov-19,Culture & Environment Services,Ruskin Lifting,Additional steel rope for rigging.,187.87,Equipment / Furniture / Materials
08-Jul-19,Culture & Environment Services,Ryman,Clickers,29.17,Equipment / Furniture / Materials
05-Nov-19,Culture & Environment Services,Ryman,Filing boxes for lesson certificates and badges,19.98,Equipment / Furniture / Materials
15-Nov-19,Culture & Environment Services,Ryman,Folder dividers,3.16,Stationery
07-Nov-19,Culture & Environment Services,Sacktrucksdirect.C,acid trolleys x 2,128.32,Equipment / Furniture / Materials
05-Nov-19,Culture & Environment Services,Safelincs,replacement defib pads,76.50,Materials and Supplies - Miscellaneous
14-Nov-19,Culture & Environment Services,Safelincs,Defib Pads,119.00,Materials and Supplies - Miscellaneous
25-Jun-19,Culture & Environment Services,Sainsburys S/mkt,Event Catering,90.62,Catering/Beverages
20-Nov-19,Culture & Environment Services,Sainsburys S/mkt,Sundries for Waste Services,4.67,Materials and Supplies - Miscellaneous
21-Nov-19,Culture & Environment Services,Sainsburys S/mkt,Sundries for Waste Services,1.83,Materials and Supplies - Miscellaneous
28-Nov-19,Culture & Environment Services,Sainsburys S/mkt,Sundries for Waste Services,1.83,Materials and Supplies - Miscellaneous
23-Sep-19,Culture & Environment Services,Sainsburys S/mkts,Event Catering,55.83,Catering/Beverages
07-Oct-19,Culture & Environment Services,Sainsburys S/mkts,Lemons and Limes,5.83,Catering/Beverages
07-Oct-19,Culture & Environment Services,Sainsburys S/mkts,Items for buffets and refreshments,5.67,Catering/Beverages
04-Nov-19,Culture & Environment Services,Sainsburys S/mkts,Food for Marina Dixon Event 51201,2.95,Catering/Beverages
07-Nov-19,Culture & Environment Services,Sainsburys S/mkts,Lemons,7.50,Catering/Beverages
08-Nov-19,Culture & Environment Services,Sainsburys S/mkts,Lemons,6.25,Catering/Beverages
12-Nov-19,Culture & Environment Services,Sainsburys S/mkts,Lemons,7.50,Catering/Beverages
21-Nov-19,Culture & Environment Services,Sainsburys S/mkts,Lemons,5.30,Catering/Beverages
22-Nov-19,Culture & Environment Services,Sainsburys S/mkts,Lemons,4.00,Catering/Beverages
27-Nov-19,Culture & Environment Services,Sainsburys S/mkts,Lemons,5.00,Catering/Beverages
28-Nov-19,Culture & Environment Services,Sainsburys S/mkts,Dietary Food for Developher Awards 51091,8.80,Catering/Beverages
14-Oct-19,Culture & Environment Services,Sainsburys S/mkts,Sundries for Waste Services,1.83,Materials and Supplies - Miscellaneous
04-Nov-19,Culture & Environment Services,Sainsburys S/mkts,Sundries for Waste Services,1.83,Materials and Supplies - Miscellaneous
08-Nov-19,Culture & Environment Services,Sainsburys S/mkts,Sundries for Waste Services,8.50,Materials and Supplies - Miscellaneous
13-Nov-19,Culture & Environment Services,Sainsburys S/mkts,Descaler - Christchurch Hub,2.92,Materials and Supplies - Miscellaneous
15-Nov-19,Culture & Environment Services,Sainsburys S/mkts,Sundries for Waste Services,1.33,Materials and Supplies - Miscellaneous
25-Nov-19,Culture & Environment Services,Sainsburys S/mkts,Dettol Disinfectant Carex Hand gell,12.50,Materials and Supplies - Miscellaneous
20-Nov-19,Culture & Environment Services,Saturn Machine Knives Lt,Blade regrind,57.98,Materials and Supplies - Miscellaneous
26-Nov-19,Culture & Environment Services,Screens-R-Us-Limited,repaired in error credit to follow,42.00,Direct Transport Costs
26-Nov-19,Culture & Environment Services,Screens-R-Us-Limited,Windscreen repair for AY13 AVN,42.00,Direct Transport Costs
26-Nov-19,Culture & Environment Services,Screens-R-Us-Limited,windscreen repair for AY66 CYA,48.00,Direct Transport Costs
26-Nov-19,Culture & Environment Services,Screens-R-Us-Limited,Windscreen replacement for AF64 TXE,198.00,Direct Transport Costs
07-Nov-19,Culture & Environment Services,Screwfix Dir. Ltd,Safety boots,44.81,Clothing / Uniform & Laundry
07-Nov-19,Culture & Environment Services,Screwfix Dir. Ltd,Device to check for electric cables in walls before drilling,74.99,Equipment / Furniture / Materials
04-Nov-19,Culture & Environment Services,Screwfix Dir. Ltd,Easy fix screws - CHANTRY FENCE - Landscape Team,20.40,Miscellaneous Stock  - Purchases
13-Nov-19,Culture & Environment Services,Screwfix Dir. Ltd,Various tools for landscape Team,61.64,Miscellaneous Stock  - Purchases
14-Nov-19,Culture & Environment Services,Screwfix Dir. Ltd,D-Shackles - CCP FENCING - Landscape Team,17.12,Miscellaneous Stock  - Purchases
14-Nov-19,Culture & Environment Services,Screwfix Dir. Ltd,D-Shackles - CCP FENCING - Landscape Team,77.01,Miscellaneous Stock  - Purchases
15-Nov-19,Culture & Environment Services,Screwfix Dir. Ltd,D-Shackles - CCP FENCING - Landscape Team,21.83,Miscellaneous Stock  - Purchases
20-Nov-19,Culture & Environment Services,Screwfix Dir. Ltd,Combination Ladder - LANDSCAPE TEAM,183.32,Miscellaneous Stock  - Purchases
21-Nov-19,Culture & Environment Services,Screwfix Dir. Ltd,Brackets - ALEXANDRA PARK - Landscape Team,43.12,Miscellaneous Stock  - Purchases
25-Nov-19,Culture & Environment Services,Screwfix Dir. Ltd,General Purpose pliers - Landscape Team,21.06,Miscellaneous Stock  - Purchases
05-Jul-19,Culture & Environment Services,Screwfix Direct,Safety Boots - PPE,33.32,Equipment / Furniture / Materials
07-Nov-19,Culture & Environment Services,Screwfix Direct,"replacement tap for LP 1st aid, bags, wd40",111.58,Equipment / Furniture / Materials
19-Aug-19,Culture & Environment Services,Screwfix Direct,Loud Hail Units,458.25,Non Contracted_Professional Services
12-Nov-19,Culture & Environment Services,Screwfix Direct Lt,Bolts - SIGANGE FOR SKATE PARKS - Play Inspector,19.71,Equipment / Furniture / Materials
19-Sep-19,Culture & Environment Services,Screwfix Direct Lt,Arb supplies,37.48,Materials and Supplies - Miscellaneous
04-Nov-19,Culture & Environment Services,Screwfix Direct Lt,Metal bits for fence Installation - Landscape Team,20.32,Miscellaneous Stock  - Purchases
18-Nov-19,Culture & Environment Services,Screwfix Direct Lt,Resin - ST AUGUSTINE'S REC - Landscape Team,32.47,Miscellaneous Stock  - Purchases
27-Nov-19,Culture & Environment Services,Screwfix Direct Lt,Tape Measure - DUMBARTON REC - Landscape Team,6.66,Miscellaneous Stock  - Purchases
07-Nov-19,Culture & Environment Services,Sharman Caravans,Goal Pegs - Christchurch Hub,16.92,Materials and Supplies - Miscellaneous
29-Nov-19,Culture & Environment Services,Shell Main Rd,Pick up lights from Flipper for the Corn exchange,4.17,Equipment / Furniture / Materials
17-Sep-19,Culture & Environment Services,Signs For You Ltd,Acrylic poster holders - Limelight area,205.26,Advertising/Publicity
17-Sep-19,Culture & Environment Services,Signs For You Ltd,Cornhill Event banners - Funded from partnership fund,238.77,Advertising/Publicity
26-Nov-19,Culture & Environment Services,Signs For You Ltd,Farmers Market banners > BWCM / Venues > BWAA,162.68,Advertising/Publicity
26-Nov-19,Culture & Environment Services,Signs For You Ltd,Farmers Market banners > BWCM / Venues > BWAA,93.70,Advertising/Publicity
01-Nov-19,Culture & Environment Services,Signs For You Ltd,Signage for the skateparks,92.50,Equipment / Furniture / Materials
21-Nov-19,Culture & Environment Services,Signs For You Ltd,Pictures for dressing rooms,190.62,Equipment / Furniture / Materials
09-Jul-19,Culture & Environment Services,Signs For You Ltd,Signage for Old Foundry Rd Toilets,155.36,Materials and Supplies - Miscellaneous
06-Nov-19,Culture & Environment Services,Signs For You Ltd,Signage for Bolton Lane Gates - Christchurch Hub,16.63,Materials and Supplies - Miscellaneous
07-Nov-19,Culture & Environment Services,Signs For You Ltd,Signage for Bolton Lane Gates - Christchurch Hub,16.63,Materials and Supplies - Miscellaneous
29-Nov-19,Culture & Environment Services,Signs For You Ltd,manufacture of wooden routed signs for Martlesham Common,146.32,Materials and Supplies - Miscellaneous
26-Nov-19,Culture & Environment Services,Sjasuplies,Frist aid stock.,93.21,Materials and Supplies - Miscellaneous
17-Oct-19,Culture & Environment Services,Sky High,MEWP HIRE FOR TREE WORK,200.00,Training Expenses
11-Oct-19,Culture & Environment Services,Snappy Snaps,Photo's for Chapter eight course,63.68,Stationery
19-Nov-19,Culture & Environment Services,Sp * Factory2u.Co.Uk,Purchase of Black hand Towels for use on stage by artists,69.12,Equipment / Furniture / Materials
08-Jul-19,Culture & Environment Services,Sportsdirect 366,"Events PPE Boots, Gloves, hi vis",81.68,Equipment / Furniture / Materials
13-Nov-19,Culture & Environment Services,Sproughton Garden Machine,Service and repairs to Jinma tractor,341.96,Equipment / Furniture / Materials
28-Nov-19,Culture & Environment Services,Sproughton Garden Machine,generator repair and service and bio chain oil,273.12,Equipment / Furniture / Materials
25-Nov-19,Culture & Environment Services,Sproughton Garden Machine,chain oil,5.42,Materials and Supplies - Miscellaneous
11-Nov-19,Culture & Environment Services,Stringerswo,shuttlecocks for retail,62.22,Goods for Resale - Equipment
11-Nov-19,Culture & Environment Services,Stringerswo,shuttlecocks for retail,62.22,Goods for Resale - Equipment
11-Nov-19,Culture & Environment Services,Stringerswo,shuttlecocks for retail,62.22,Goods for Resale - Equipment
22-Jul-19,Culture & Environment Services,Suffolk County Council,Road Closure Application and re-submission,58.33,Miscellaneous Expenses
06-Nov-19,Culture & Environment Services,Suffolk County Council,2019 General Elections Road Closure Application Fee,50.00,Non Contracted_Professional Services
11-Nov-19,Culture & Environment Services,Suffolk Fastener (Ipsw,Bolts - MAPLE PARK SIGNAGE - Play Inspector,13.33,Equipment / Furniture / Materials
06-Nov-19,Culture & Environment Services,Suffolk Fastener (Ipsw,Bolts - CHANTRY FENCING - Play Inspector,27.30,Miscellaneous Stock  - Purchases
28-Nov-19,Culture & Environment Services,Suffolk Halal,Dietary Food for Developher Awards 51091,11.76,Catering/Beverages
04-Nov-19,Culture & Environment Services,Sumup *chippertech For,Chipper Hire,520.00,Equipment Hire
29-Nov-19,Culture & Environment Services,Surf & Turf Instant Sh,gazebo parts for the market,132.50,Premises Costs - Miscellaneous
08-Jul-19,Culture & Environment Services,T K Maxx,Dressing Room Furnishings,44.23,Fixtures & Fittings
07-Oct-19,Culture & Environment Services,T K Maxx,Dressing Room Accessories - Regent,108.48,Fixtures & Fittings
23-Aug-19,Culture & Environment Services,Tesco Store 2748,Meeting Catering,41.96,Catering/Beverages
26-Aug-19,Culture & Environment Services,Tesco Store 2748,Purchase of clip boards for Chantry event,16.67,Materials and Supplies - Miscellaneous
18-Nov-19,Culture & Environment Services,Tesco Store 2748,volunteer event refreshments,24.10,Miscellaneous Expenses
25-Jul-19,Culture & Environment Services,Tesco Store 2748,Toaster & Kettle for 24/7 Security Accommodation,32.00,Non Contracted_Professional Services
30-Jul-19,Culture & Environment Services,Tesco Store 2748,Microwave - 24/7 Security Accommodation,41.67,Non Contracted_Professional Services
01-Nov-19,Culture & Environment Services,Tesco Store 3240,"Gin for Regent Bar, Food for conferences 51170 & 51201",236.67,Catering/Beverages
01-Nov-19,Culture & Environment Services,Tesco Store 3240,"Gin for Regent Bar, Food for conferences 51170 & 51201",9.80,Catering/Beverages
01-Nov-19,Culture & Environment Services,Tesco Store 3240,"Gin for Regent Bar, Food for conferences 51170 & 51201",69.69,Catering/Beverages
05-Nov-19,Culture & Environment Services,Tesco Store 3240,Milk for Senior Managers Away Days,2.18,Catering/Beverages
13-Nov-19,Culture & Environment Services,Tesco Store 3240,"Food for Panto, Launch, Gin for Bars, drink for develpher aw",280.00,Catering/Beverages
13-Nov-19,Culture & Environment Services,Tesco Store 3240,"Food for Panto, Launch, Gin for Bars, drink for develpher aw",9.50,Catering/Beverages
13-Nov-19,Culture & Environment Services,Tesco Store 3240,"Food for Panto, Launch, Gin for Bars, drink for develpher aw",3.32,Catering/Beverages
13-Nov-19,Culture & Environment Services,Tesco Store 3240,"Food for Panto, Launch, Gin for Bars, drink for develpher aw",42.54,Catering/Beverages
15-Nov-19,Culture & Environment Services,Tesco Store 3240,"Drink for bars, lemons",15.25,Catering/Beverages
15-Nov-19,Culture & Environment Services,Tesco Store 3240,"Drink for bars, lemons",9.00,Catering/Beverages
19-Nov-19,Culture & Environment Services,Tesco Store 3240,Pink Gin for Regent Bars,95.00,Catering/Beverages
22-Nov-19,Culture & Environment Services,Tesco Store 3240,Food for Johanna Mulley Conference 51205,41.37,Catering/Beverages
26-Nov-19,Culture & Environment Services,Tesco Store 3240,Dietary Food for Developher Awards 51091,19.60,Catering/Beverages
26-Nov-19,Culture & Environment Services,Tesco Store 3240,Dietary Food for Developher Awards 51091/ Drink for xmas par,270.92,Catering/Beverages
26-Nov-19,Culture & Environment Services,Tesco Store 3240,Dietary Food for Developher Awards 51091/ Drink for xmas par,32.45,Catering/Beverages
27-Nov-19,Culture & Environment Services,Tesco Store 3240,Dietary Food for Developher Awards 51091,6.10,Catering/Beverages
13-Nov-19,Culture & Environment Services,Tesco Store 3240,"Food for Panto, Launch, Gin for Bars, drink for develpher aw",5.42,Cleaning Supplies
29-Oct-19,Culture & Environment Services,The Ipswich Cobble,Key cutting,30.00,Equipment / Furniture / Materials
13-Nov-19,Culture & Environment Services,The Ipswich Cobble,Key cutting,62.50,Equipment / Furniture / Materials
29-Nov-19,Culture & Environment Services,The Post Office,postage for a book sent to the corn exchange,3.33,Postage Costs
12-Aug-19,Culture & Environment Services,The Range,Painting Equipment - Stage & Dressing Rooms,49.49,Equipment / Furniture / Materials
30-Aug-19,Culture & Environment Services,The Range,Stage and Floor Paint,104.38,Equipment / Furniture / Materials
19-Nov-19,Culture & Environment Services,The Range,Red Paint - BENCHES PLAY AREAS,24.12,Equipment / Furniture / Materials
21-Nov-19,Culture & Environment Services,The Range,Red Paint - BENCHES PLAY AREA,19.30,Equipment / Furniture / Materials
23-Aug-19,Culture & Environment Services,The Range,Purchase of wesp nest killer,8.32,Materials and Supplies - Miscellaneous
13-Nov-19,Culture & Environment Services,The Range,Paint - GIPPESWYK PARK - Park Patrol,23.32,Materials and Supplies - Miscellaneous
14-Nov-19,Culture & Environment Services,The Works,volunteer consumerables,7.50,Equipment - Repairs
27-Nov-19,Culture & Environment Services,The Works,Hamper baskets for panto,17.67,Equipment / Furniture / Materials
06-Nov-19,Culture & Environment Services,Tilers Tools,Rotating Laser Receiver - Landscape Team,105.20,Miscellaneous Stock  - Purchases
22-Oct-19,Culture & Environment Services,Timpson,Key cutting,8.33,Equipment / Furniture / Materials
21-Nov-19,Culture & Environment Services,Timpson,2 x keys,8.33,Equipment / Furniture / Materials
18-Nov-19,Culture & Environment Services,Toms Tree Ties,Sproughton Landscaping,716.00,Miscellaneous Stock  - Purchases
19-Nov-19,Culture & Environment Services,Toolstation Ltd,Red Paint - BENCHES PLAY AREAS,9.63,Equipment / Furniture / Materials
19-Nov-19,Culture & Environment Services,Toolstation Ltd,Red Paint - BENCHES PLAY AREAS,20.38,Equipment / Furniture / Materials
21-Nov-19,Culture & Environment Services,Toolstation Ltd,Red paint - BENCHES PLAY AREA,9.30,Equipment / Furniture / Materials
21-Nov-19,Culture & Environment Services,Tp Ipswich,Cleansing Supplies,304.64,Equipment / Furniture / Materials
25-Nov-19,Culture & Environment Services,Trainline,Train Travel to London,36.87,Training Expenses
20-Nov-19,Culture & Environment Services,Trainline,Train,28.60,Travel Allowances
07-Nov-19,Culture & Environment Services,Turner Tool Hire,MEWP HIRE,"1,451.55",Equipment Hire
08-Nov-19,Culture & Environment Services,Value Products Ltd,No parking signs,30.50,Fixtures & Fittings
01-Nov-19,Culture & Environment Services,Victoria Nurseries,Various Plants/flowers for CCP - Christchurch Hub,191.67,Materials and Supplies - Miscellaneous
20-Nov-19,Culture & Environment Services,Victoria Nurseries,Various Flowers/Plants - CHRISTCHURCH HUB,191.67,Materials and Supplies - Miscellaneous
22-Nov-19,Culture & Environment Services,Victoria Nurseries,Ivy/Turf - CHRISTCHURCH HUB,24.17,Materials and Supplies - Miscellaneous
29-Nov-19,Culture & Environment Services,Victoria Nurseries,Soil - CHRISTCHURCH HUB,31.67,Materials and Supplies - Miscellaneous
29-Nov-19,Culture & Environment Services,Victoria Nurseries,x2 Twisted trees - CHRISTCHURCH HUB,249.98,Materials and Supplies - Miscellaneous
07-Nov-19,Culture & Environment Services,Victoria Nurseries,Bedding for Remembrance Sunday,166.67,Miscellaneous Stock  - Purchases
15-Nov-19,Culture & Environment Services,Victoria Nurseries,Sproughton Landscaping,316.67,Miscellaneous Stock  - Purchases
21-Nov-19,Culture & Environment Services,Victorian Plumbing Ltd,Shower rings for profiles,15.67,Equipment / Furniture / Materials
08-Oct-19,Culture & Environment Services,W J Green Limited,Handle Housing repair on Stihl MS201TC-M,39.29,Materials and Supplies - Miscellaneous
04-Nov-19,Culture & Environment Services,W J Green Limited,Carburettor Box cover repair oil tank insulator,95.98,Materials and Supplies - Miscellaneous
05-Nov-19,Culture & Environment Services,W J Green Limited,Arbortec Mamba Dry Kit Bag Black,84.96,Materials and Supplies - Miscellaneous
25-Nov-19,Culture & Environment Services,W J Green Limited,"Arb chain 18"" X Force Pro 3.8 1.5mm",64.66,Materials and Supplies - Miscellaneous
08-Jul-19,Culture & Environment Services,Wagamama Ipswich,Promoter Lunch,19.62,Miscellaneous Expenses
04-Nov-19,Culture & Environment Services,Waitrose Ltd,Rob Beckett Rider,5.00,Catering/Beverages
04-Nov-19,Culture & Environment Services,Waitrose Ltd,Rob Beckett Rider,1.04,Catering/Beverages
07-Nov-19,Culture & Environment Services,Waitrose Ltd,Milk ,4.40,Catering/Beverages
19-Nov-19,Culture & Environment Services,Waitrose Ltd,Milk,3.45,Catering/Beverages
27-Nov-19,Culture & Environment Services,Waitrose Ltd,Dietary Food for Developher Awards 51091,2.15,Catering/Beverages
28-Nov-19,Culture & Environment Services,Waitrose Ltd,Bread and salad for meeting buffets,11.20,Catering/Beverages
28-Nov-19,Culture & Environment Services,Waitrose Ltd,Dietary Food for Developher Awards 51091,1.10,Catering/Beverages
28-Nov-19,Culture & Environment Services,Waitrose Ltd,Dietary Food for Developher Awards 51091,5.30,Catering/Beverages
29-Nov-19,Culture & Environment Services,Wh Smith,envelope for a return postage received by corn exchange,1.49,Postage Costs
22-Nov-19,Culture & Environment Services,Wh Smith,pens for security cards,4.16,Premises Costs - Miscellaneous
08-Nov-19,Culture & Environment Services,Wh Smith,"Folders, polly pockets, sealable packs for enclosing COSSH",26.83,Stationery
28-Nov-19,Culture & Environment Services,Wh Smith,Card,6.35,Stationery
05-Nov-19,Culture & Environment Services,White Ribbon Uk,"White Ribbon items, NOT VAT registered",81.00,Specific Campaigns / Projects expenditure
07-Nov-19,Culture & Environment Services,Wickes Ipswich,Sand - REMEMBRANCE SUNDAY,9.50,Materials and Supplies - Miscellaneous
08-Nov-19,Culture & Environment Services,Wickes Ipswich,Postcrete - TREE DONATION - Christchurch Park,3.52,Materials and Supplies - Miscellaneous
15-Nov-19,Culture & Environment Services,Wickes Ipswich,Postcrete - CHANTRY HUB,14.10,Materials and Supplies - Miscellaneous
22-Nov-19,Culture & Environment Services,Wickes Ipswich,Builders bags of cement - CHANTRY HUB,16.25,Materials and Supplies - Miscellaneous
04-Nov-19,Culture & Environment Services,Wickes Ipswich,Ballast - CHANTRY FENCE INSTALLATION,28.75,Miscellaneous Stock  - Purchases
05-Nov-19,Culture & Environment Services,Wickes Ipswich,Postcrete & Ducktape - CHANTRY FENCING - Landscape Team,57.75,Miscellaneous Stock  - Purchases
07-Nov-19,Culture & Environment Services,Wickes Ipswich,Postcrete - CHANTRY FENCING - Landscape Team,35.25,Miscellaneous Stock  - Purchases
07-Nov-19,Culture & Environment Services,Wickes Ipswich,Various tools for Landscape Team,67.75,Miscellaneous Stock  - Purchases
08-Nov-19,Culture & Environment Services,Wickes Ipswich,Cement - GYM EQUIP INSTALLATION - Landscape Team,48.75,Miscellaneous Stock  - Purchases
08-Nov-19,Culture & Environment Services,Wickes Ipswich,Side cutter - CHANTRY FENCING - Landscape Team,10.00,Miscellaneous Stock  - Purchases
19-Nov-19,Culture & Environment Services,Wickes Ipswich,Various materials for gym installation.,53.67,Miscellaneous Stock  - Purchases
05-Nov-19,Culture & Environment Services,Wickes Ipswich,Anti mould products,8.33,Parks Vehicle Costs
01-Oct-19,Culture & Environment Services,Widespread Solutions L,filters for stonemason,178.00,Equipment / Furniture / Materials
07-Nov-19,Culture & Environment Services,Wilko Retail Limited,Christmas parties,10.62,Equipment / Furniture / Materials
07-Oct-19,Culture & Environment Services,Wilko Retail Limited,Hand towels for shows - Sound City,75.42,Materials and Supplies - Miscellaneous
27-Nov-19,Culture & Environment Services,Wilko Retail Limited,Cable Ties - CHRISTCHURCH HUB,12.08,Materials and Supplies - Miscellaneous
07-Nov-19,Culture & Environment Services,Wilko.Com,Volunteer consumerables,6.67,Equipment - Repairs
07-Nov-19,Culture & Environment Services,Wilko.Com,Volunteer consumerables,7.00,Equipment - Repairs
07-Nov-19,Culture & Environment Services,Wilko.Com,Volunteer consumerables,5.00,Equipment - Repairs
07-Nov-19,Culture & Environment Services,Wilko.Com,Volunteer consumerables,1.67,Equipment - Repairs
07-Nov-19,Culture & Environment Services,Wilko.Com,Volunteer consumerables,1.67,Equipment - Repairs
07-Nov-19,Culture & Environment Services,Wilko.Com,Volunteer consumerables,3.33,Equipment - Repairs
07-Nov-19,Culture & Environment Services,Wilko.Com,Volunteer consumerables,5.83,Equipment - Repairs
07-Nov-19,Culture & Environment Services,Wilko.Com,Volunteer consumerables,6.25,Equipment - Repairs
23-Aug-19,Culture & Environment Services,Wm Morrisons Store,Events Van Rack,47.25,Non Contracted_Professional Services
18-Nov-19,Culture & Environment Services,Wrights Retail Ltd,Silicon - ST AUGUSTINES REC - Landscape Team,7.47,Miscellaneous Stock  - Purchases
21-Nov-19,Culture & Environment Services,Www.Banneruk.Com,Document holder and rubber bands,9.92,Equipment / Furniture / Materials
22-Nov-19,Culture & Environment Services,Www.Banneruk.Com,staples,2.84,Equipment / Furniture / Materials
11-Nov-19,Culture & Environment Services,Www.Banneruk.Com,"Pens, diary etc.",127.94,Stationery
11-Nov-19,Culture & Environment Services,Www.Banneruk.Com,"Pens, paper etc.",2.72,Stationery
29-Nov-19,Culture & Environment Services,Www.Banneruk.Com,Stationary,14.60,Stationery
29-Nov-19,Culture & Environment Services,Www.Banneruk.Com,Stationery Order,3.76,Stationery
08-Nov-19,Culture & Environment Services,Www.British-Gymnastics,Trampoline badges and certificates.,131.69,Goods for Resale - Equipment
14-Nov-19,Culture & Environment Services,Www.British-Gymnastics,Gymnastics certificates and badges,30.43,Stationery
25-Nov-19,Culture & Environment Services,Www.Brownsgroup.Co.Uk,Pallet courier service - for return of 14 wheelie bins,50.12,Materials and Supplies - Miscellaneous
07-Nov-19,Culture & Environment Services,Www.Cakecraftworld.Co.,Items for Panto Launch,7.83,Catering/Beverages
13-Nov-19,Culture & Environment Services,Www.Cleanroomsuppliesltd,"Pool Blue Shoe Covers x 10,000",243.40,Cleaning Supplies
29-Nov-19,Culture & Environment Services,Www.Direct2u.Co.Uk,return of money for 14 wheelie bins,-588.00,Equipment / Furniture / Materials
07-Nov-19,Culture & Environment Services,Www.Filmbank.Co.Uk,Filmbank Licensing Fee - Mamma Mia 2 @40% Ticket Sales,516.00,Non Contracted_Professional Services
28-Nov-19,Culture & Environment Services,Www.Firstfence.Co.Uk,Urgent replacement fence after vandalism at Dumbarton Road,258.93,Miscellaneous Stock  - Purchases
28-Nov-19,Culture & Environment Services,Www.Firstfence.Co.Uk,Urgent replacement fence after vandalism at Dumbarton Road,833.33,Miscellaneous Stock  - Purchases
28-Nov-19,Culture & Environment Services,Www.Firstfence.Co.Uk,Urgent replacement fence after vandalism at Dumbarton Road,833.33,Miscellaneous Stock  - Purchases
06-Nov-19,Culture & Environment Services,Www.Flags.Co.Uk,3 X Bespoke Borough Flags - 2 x Town hall and 1 x Grafton,97.20,Equipment / Furniture / Materials
06-Nov-19,Culture & Environment Services,Www.Flags.Co.Uk,3 X Bespoke Borough Flags - 2 x Town hall and 1 x Grafton,48.60,Equipment / Furniture / Materials
18-Nov-19,Culture & Environment Services,Www.Fta.Co.Uk,Retorque tags,4.70,Direct Transport Costs
18-Oct-19,Culture & Environment Services,Www.Gov.Uk,probate certificate,1.25,Equipment / Furniture / Materials
10-Jul-19,Culture & Environment Services,Www.Graniteworkwear.Com,Hi Vis clothing for GSCC staff,117.75,Clothing / Uniform & Laundry
15-Nov-19,Culture & Environment Services,Www.Handle-It.Com,acid trolley,669.00,Equipment / Furniture / Materials
25-Oct-19,Culture & Environment Services,Www.Harbrosupplies.Com,stonemasons supplies,246.70,Goods for Resale - Bereavement
20-Nov-19,Culture & Environment Services,Www.Heatoncatering,Ramekins,61.28,Materials and Supplies - Miscellaneous
11-Oct-19,Culture & Environment Services,Www.Jacksons-Fencing.C,FENCING FOR LANDSCAPE SCHEME,58.12,Miscellaneous Stock  - Purchases
11-Oct-19,Culture & Environment Services,Www.Jacksons-Fencing.C,FENCING FOR LANDSCAPE SCHEME ,"2,500.00",Miscellaneous Stock  - Purchases
29-Nov-19,Culture & Environment Services,Www.Jacksons-Fencing.C,chain for CCP triangle fencing,567.10,Miscellaneous Stock  - Purchases
07-Nov-19,Culture & Environment Services,Www.Johnlewis.Com,Replacement Steam Iron,164.12,Equipment / Furniture / Materials
25-Nov-19,Culture & Environment Services,Www.Licencecheck.Co.Uk,License Check Credits,150.50,Transport Costs - Miscellaneous
23-Oct-19,Culture & Environment Services,Www.Liftingequipmentstor,Kratos Restraint Kernmantle Rope Lanyard 2m,133.00,Materials and Supplies - Miscellaneous
13-Sep-19,Culture & Environment Services,Www.Metals4u.Co.Uk,Poles for Town Hall banners hanging,32.50,Advertising/Publicity
04-Nov-19,Culture & Environment Services,Www.Nisbets.Com,Items for Corny bars,45.00,Materials and Supplies - Miscellaneous
28-Oct-19,Culture & Environment Services,Www.Officeteamconnect.Co,STATIONERY FOR X 3 HUBS,294.22,Stationery
04-Nov-19,Culture & Environment Services,Www.Showcomms.Co.Uk,Motorola Wire headsets for Airwave radios - PARK PATROL,179.51,Materials and Supplies - Miscellaneous
07-Nov-19,Culture & Environment Services,Www.Showcomms.Co.Uk,Radio Accessories for Airwaves Radios - Christchurch Hub,234.45,Materials and Supplies - Miscellaneous
07-Nov-19,Culture & Environment Services,Www.Showcomms.Co.Uk,Refund for returned items - Christchurch Hub,-71.80,Materials and Supplies - Miscellaneous
29-Nov-19,Culture & Environment Services,Www.Showcomms.Co.Uk,Ear pieces,225.01,Miscellaneous Stock  - Purchases
27-Sep-19,Culture & Environment Services,Www.Sinclair-Rush.Co.U,Pole bungs and rubber feet,109.40,Equipment / Furniture / Materials
22-Oct-19,Culture & Environment Services,Www.Skylandequipment.C,Gloves for Arbs Team,95.40,Clothing / Uniform & Laundry
25-Oct-19,Culture & Environment Services,Www.Tannertrading.Co.Uk,Fence Posts for Remembrance,161.92,Equipment / Furniture / Materials
03-Oct-19,Culture & Environment Services,Www.Tellermate.Com,Spare money scales to support Mansion shop,265.00,Equipment / Furniture / Materials
22-Nov-19,Culture & Environment Services,Www.Weirbags.Co.Uk,bags for market gazebo's and parts,28.33,Premises Costs - Miscellaneous
11-Nov-19,Culture & Environment Services,Yellow Shield Ltd,Mini wheelie bins x 2 for winter dressing,63.48,Equipment / Furniture / Materials
11-Nov-19,Culture & Environment Services,Zoggs International Ltd,toiletries for retail,6.00,Goods for Resale - Equipment
11-Nov-19,Culture & Environment Services,Zoggs International Ltd,toiletries for retail,6.00,Goods for Resale - Equipment
11-Nov-19,Culture & Environment Services,Zoggs International Ltd,toiletries for retail,6.00,Goods for Resale - Equipment
11-Nov-19,Culture & Environment Services,Zoggs International Ltd,toiletries for retail,6.00,Goods for Resale - Equipment
22-Nov-19,Development,Amznmktplace,Ergonomic mouse - PR,14.57,Computer Equipment - Purchase
13-Nov-19,Development,Babergh District C,Partnership Inspections 9 Newberry,100.00,Non Contracted_Professional Services
13-Nov-19,Development,Horizon Environment Sr,wasp nest removal,46.00,Premises Costs - Miscellaneous
01-Nov-19,Development,Https://Www.Estore.Wlv,Level 4 Residential Week,247.50,Training Expenses
26-Nov-19,Development,Ipswich Borough Co,Permit fee,10.00,Capital Expenditure
26-Nov-19,Development,Ipswich Borough Co,Permit fee,10.00,Capital Expenditure
04-Nov-19,Development,Ipswich Borough Co,Parking dispensation re Xmas tree install,105.00,GF_Contract Repair & Maintenance
06-Nov-19,Development,John Wiley & Sons Publ,Project Management COP,64.46,Publications - Purchase
11-Nov-19,Development,Machine Mart Web,trolley,54.14,Premises Costs - Miscellaneous
04-Nov-19,Development,Paypal,East of England Law Update (Officer training),156.00,Training Expenses
25-Nov-19,Development,Sainsburys S/mkt,milk,8.50,Subsistence & Conference/Seminar / Event Expenses
25-Nov-19,Development,Screwfix Direct,Padlock for Eastern Gateway,24.99,Capital Expenditure
13-Nov-19,Development,West Suffolk Council,Safety at Sports Grounds 4.12.19,150.00,Training Expenses
14-Nov-19,Development,"Www,eastsuffolk.Gov.Uk",Partnership Inspections Elmwood Cottage,192.00,Non Contracted_Professional Services
26-Nov-19,Development,Www.Latitudemaps.Co.Uk,Latitude Maps,13.75,Publications - Purchase
01-Nov-19,Development,Www.Planningportal.Co.,Planning app for CCTV Upgrade project,487.00,Capital Expenditure
21-Nov-19,Development,Www.Planningportal.Co.,"Planning portal costs, Kevin Beattie statue (RA)",259.00,Holding A/C - General Use
19-Nov-19,Development,Www.Ribabookshops.Com,Project Management COP,81.40,Publications - Purchase
01-Nov-19,Finance & Revenues,Amazon.Co.Uk,2 x Wireless Mse,31.98,Computer Equipment - Purchase
12-Nov-19,Finance & Revenues,Amznmktplace,3 x Wireless Mice,23.97,Computer Equipment - Purchase
20-Nov-19,Finance & Revenues,Amznmktplace,Laptop cable locks x 3,23.97,Computer Equipment - Purchase
11-Nov-19,Finance & Revenues,Amznmktplace,Protective cases for Smartphones,44.62,Telecommunication Costs - Mobiles
11-Nov-19,Finance & Revenues,Amznmktplace,Protective cases for Smartphones,99.17,Telecommunication Costs - Mobiles
11-Nov-19,Finance & Revenues,Amznmktplace,Protective cases for Smartphones,4.96,Telecommunication Costs - Mobiles
11-Nov-19,Finance & Revenues,Amznmktplace,Protective cases for Smartphones,4.96,Telecommunication Costs - Mobiles
11-Nov-19,Finance & Revenues,Amznmktplace,Protective cases for Smartphones,4.96,Telecommunication Costs - Mobiles
19-Nov-19,Finance & Revenues,Amznmktplace,Protective cases for Smartphones,4.96,Telecommunication Costs - Mobiles
19-Nov-19,Finance & Revenues,Amznmktplace,Protective cases for Smartphones,9.92,Telecommunication Costs - Mobiles
19-Nov-19,Finance & Revenues,Amznmktplace,Protective cases for Smartphones,4.96,Telecommunication Costs - Mobiles
19-Nov-19,Finance & Revenues,Amznmktplace,Protective cases for Smartphones,4.96,Telecommunication Costs - Mobiles
19-Nov-19,Finance & Revenues,Amznmktplace,Protective cases for Smartphones,4.96,Telecommunication Costs - Mobiles
19-Nov-19,Finance & Revenues,Amznmktplace,Protective cases for Smartphones,4.96,Telecommunication Costs - Mobiles
22-Nov-19,Finance & Revenues,Amznmktplace,Protective cases for Smartphones,4.96,Telecommunication Costs - Mobiles
22-Nov-19,Finance & Revenues,Amznmktplace,Protective cases for Smartphones,4.96,Telecommunication Costs - Mobiles
22-Nov-19,Finance & Revenues,Amznmktplace,Protective cases for Smartphones,14.87,Telecommunication Costs - Mobiles
22-Nov-19,Finance & Revenues,Amznmktplace,Protective cases for Smartphones,4.96,Telecommunication Costs - Mobiles
22-Nov-19,Finance & Revenues,Amznmktplace,Protective cases for Smartphones,4.96,Telecommunication Costs - Mobiles
22-Nov-19,Finance & Revenues,Amznmktplace,Protective cases for Smartphones,4.96,Telecommunication Costs - Mobiles
21-Oct-19,Finance & Revenues,Amznmktplace Amazon.Co.Uk,USB-C Adaptors for Agile,130.50,Computer Equipment - Purchase
01-Nov-19,Finance & Revenues,Amznmktplace Amazon.Co.Uk,PC Stick with Wireless Keyboard & Mse,167.87,Equipment / Furniture / Materials
25-Nov-19,Finance & Revenues,Amznmktplace Amazon.Co.Uk,Mouse Mats,12.21,Stationery
25-Nov-19,Finance & Revenues,Amznmktplace Amazon.Co.Uk,Wrist Rest ,12.52,Stationery
25-Nov-19,Finance & Revenues,Cbt Nuggets Llc,ICT Training,47.39,Training Expenses
15-Nov-19,Finance & Revenues,Comms Express Ltd,Wi-Fi Access Points for Regent Theatre,"1,285.56",Computer Consumables and other Minor IT costs
18-Nov-19,Finance & Revenues,Comms Express Ltd,Wi-Fi Access Points for Regent Theatre,"1,167.00",Computer Consumables and other Minor IT costs
15-Nov-19,Finance & Revenues,Comms Express Ltd,POE Network Switches,57.96,Computer Equipment - Purchase
07-Nov-19,Finance & Revenues,Ebuyer (UK) Ltd,Laptop cases,203.17,Equipment / Furniture / Materials
29-Nov-19,Finance & Revenues,Google,API usage,15.02,Computer Software - Purchase
08-Nov-19,Finance & Revenues,Greater Anglia Trains,Travel for Training/Conference,55.08,Training Expenses
06-Nov-19,Finance & Revenues,Paypal,Stock power supplies,103.97,Computer Equipment - Purchase
07-Nov-19,Finance & Revenues,Service Fees - Fraedom Pty Ltd,Fraedom Card Usage Fees 01/10/19 to 31/10/19,383.15,Computer Software - Maintenance
01-Nov-19,Finance & Revenues,Trainline,Ipswich to London Liverpool St return,40.50,Use Of Public Transport
19-Nov-19,Finance & Revenues,Trainline,Rail Tickets,77.92,Use Of Public Transport
05-Nov-19,Finance & Revenues,Trainline.Com,Rail Tickets,83.39,Use Of Public Transport
19-Nov-19,Finance & Revenues,Trainline.Com,Rail Tickets,180.09,Use Of Public Transport
19-Nov-19,Finance & Revenues,Trainline.Com,Refund of Rail Tickets,-167.50,Use Of Public Transport
19-Nov-19,Finance & Revenues,Www.Aat-Org.Uk,AAT Subscription ,157.00,Employee Expenses
19-Nov-19,Finance & Revenues,Www.Cimaglobal.Com,CIMA Student Fee,120.00,Employee Expenses
19-Nov-19,Finance & Revenues,Www.Cimaglobal.Com,CIMA Subscription,297.00,Employee Expenses
13-Nov-19,Housing & Community Services,Amazon Prime,Amazon Prime,7.99,Equipment / Furniture / Materials
27-Nov-19,Housing & Community Services,Amazon.Co.Uk,5x 10.8v Bosch Combi Drills & Chargers Hireshop,220.79,Equipment / Furniture / Materials
08-Nov-19,Housing & Community Services,Amznmktplace,Samsung tablet case,13.98,Computer Equipment - Purchase
18-Nov-19,Housing & Community Services,Amznmktplace,Screen Protector,7.89,Computer Software - Purchase
13-Nov-19,Housing & Community Services,Amznmktplace,Clip board,1.71,Equipment / Furniture / Materials
25-Nov-19,Housing & Community Services,Amznmktplace,Phone case and screen protectors DA,11.98,Equipment / Furniture / Materials
04-Nov-19,Housing & Community Services,Amznmktplace,Foil blankets/ Face masks - Paper cups,11.62,Materials and Supplies - Miscellaneous
04-Nov-19,Housing & Community Services,Amznmktplace,Foil blankets/ Face masks - Paper cups,6.36,Materials and Supplies - Miscellaneous
14-Nov-19,Housing & Community Services,Amznmktplace,Fire Keys,17.25,Materials and Supplies - Miscellaneous
20-Nov-19,Housing & Community Services,Amznmktplace Amazon.Co.Uk,Tablet cases/screen protectors,69.74,Computer Equipment - Purchase
20-Nov-19,Housing & Community Services,Argos Retail Group,Christmas supplies for Customer Service Centre,87.00,Materials and Supplies - Miscellaneous
13-Nov-19,Housing & Community Services,Arriva Hotel,Hotel stay - safety conference,212.67,Training Expenses
15-Nov-19,Housing & Community Services,Ashcroft Road Surgery,RW Vaccinations,445.13,Services for Clients
27-Nov-19,Housing & Community Services,Booker Limited Ipswich,Tea/Coffee/Sugar,51.66,Materials and Supplies - Miscellaneous
25-Nov-19,Housing & Community Services,Bunzl,cleaning supplies,124.36,Cleaning Supplies
15-Nov-19,Housing & Community Services,Cartridge Save,Toner Cartridges,84.20,Computer Equipment - Purchase
15-Nov-19,Housing & Community Services,Complete Food Safety,Ultrasnap surface swabs,181.95,Equipment / Furniture / Materials
29-Mar-19,Housing & Community Services,Cpw Locksmiths And Securi,Communal sheltered keys,96.00,HRA Special Repairs & Maintenance
05-Nov-19,Housing & Community Services,Currys T/sales,Freezer SM,99.17,Specific Campaigns / Projects expenditure
18-Jun-19,Housing & Community Services,Dickens News & Off Lic,elec,10.00,Materials and Supplies - Miscellaneous
18-Jun-19,Housing & Community Services,Dickens News & Off Lic,Electric,15.00,Materials and Supplies - Miscellaneous
02-Sep-19,Housing & Community Services,Dickens News & Off Lic,Electric,20.00,Materials and Supplies - Miscellaneous
02-Sep-19,Housing & Community Services,Dickens News & Off Lic,Electric,100.00,Materials and Supplies - Miscellaneous
20-Nov-19,Housing & Community Services,Dickens News & Off Lic,Electric,15.20,Materials and Supplies - Miscellaneous
12-Nov-19,Housing & Community Services,Easyhotel Ipswich,B & B ,83.98,Services for Clients
29-Jul-19,Housing & Community Services,Eoe Coop,Electric,30.00,Materials and Supplies - Miscellaneous
29-Jul-19,Housing & Community Services,Eoe Coop,Electric,30.00,Materials and Supplies - Miscellaneous
01-Oct-19,Housing & Community Services,Eoe Coop,Electric,10.00,Materials and Supplies - Miscellaneous
20-Nov-19,Housing & Community Services,Eoe Coop,Electric,40.00,Materials and Supplies - Miscellaneous
21-Jun-19,Housing & Community Services,Eoe Co-Op,Electric,40.00,Materials and Supplies - Miscellaneous
21-Jun-19,Housing & Community Services,Eoe Co-Op,Electric,40.00,Materials and Supplies - Miscellaneous
21-Jun-19,Housing & Community Services,Eoe Co-Op,elec,40.00,Materials and Supplies - Miscellaneous
14-Aug-19,Housing & Community Services,Eoe Co-Op,Electric,20.00,Materials and Supplies - Miscellaneous
03-Sep-19,Housing & Community Services,Eoe Co-Op,Electric,40.00,Materials and Supplies - Miscellaneous
09-Oct-19,Housing & Community Services,Eoe Co-Op,Electric,10.00,Materials and Supplies - Miscellaneous
01-Nov-19,Housing & Community Services,Eoe Co-Op,Electric,15.00,Materials and Supplies - Miscellaneous
07-Nov-19,Housing & Community Services,Eoe Co-Op,Electric,15.00,Materials and Supplies - Miscellaneous
13-Nov-19,Housing & Community Services,Eoe Co-Op,Electric,20.00,Materials and Supplies - Miscellaneous
15-Nov-19,Housing & Community Services,Eoe Co-Op,Electric,30.00,Materials and Supplies - Miscellaneous
07-Nov-19,Housing & Community Services,Gen Register Office,Refund,-7.50,Services for Clients
26-Jul-19,Housing & Community Services,Graham,Plumbing Materials,120.35,Materials and Supplies - Miscellaneous
13-Nov-19,Housing & Community Services,Highstreetvouchers,Vouchers for residents living next to Polling Station,63.50,Equipment / Furniture / Materials
26-Nov-19,Housing & Community Services,Highstreetvouchers,Vouchers for residents affected by election,20.00,Equipment / Furniture / Materials
28-Nov-19,Housing & Community Services,Highstreetvouchers,Garden Competition Winners,115.00,Housing  - other Costs
14-Nov-19,Housing & Community Services,Highstreetvouchers,Voucher as gesture of goodwill to tenant,23.50,Premises Costs - Miscellaneous
20-Nov-19,Housing & Community Services,Highstreetvouchers,Vouchers for tenant good will gesture,23.50,Premises Costs - Miscellaneous
11-Sep-19,Housing & Community Services,Hotel On Booking.Com The,training for HQN as speaker - refunded back by HQN,81.00,Training Expenses
19-Nov-19,Housing & Community Services,Idealenvelo,envelopes to go with greetings cards for sale at TIC,172.00,Goods for Resale - Retail
05-Nov-19,Housing & Community Services,Ipswich Borough Co,Parking suspension for community dentist,65.00,Services for Clients
05-Nov-19,Housing & Community Services,Ipswich Borough Co,Parking suspension for community dentist,65.00,Services for Clients
07-Nov-19,Housing & Community Services,Ipswich Borough Co,Parking suspension for dental services,65.00,Services for Clients
07-Nov-19,Housing & Community Services,Ipswich Borough Co,Parking suspension for dental services,65.00,Services for Clients
07-Nov-19,Housing & Community Services,Ipswich Borough Co,Parking suspension for dental services,65.00,Services for Clients
07-Nov-19,Housing & Community Services,Ipswich Borough Co,Parking suspension for dental services,65.00,Services for Clients
07-Nov-19,Housing & Community Services,Ipswich Borough Co,Parking suspension for dental services,65.00,Services for Clients
07-Nov-19,Housing & Community Services,Ipswich Borough Co,Parking suspension for dental services,65.00,Services for Clients
11-Nov-19,Housing & Community Services,J2 Efax Plus Service,Monthly fee for use of secure fax system (food parcels),11.00,Miscellaneous Expenses
26-Nov-19,Housing & Community Services,Liquidline Vt,Coffee and Sugar,99.18,Materials and Supplies - Miscellaneous
05-Nov-19,Housing & Community Services,Lyndon House Hotel,Hotel room,49.50,Training Expenses
24-Sep-19,Housing & Community Services,Martin McColl,Electric,10.00,Materials and Supplies - Miscellaneous
24-Sep-19,Housing & Community Services,Martin McColl,Electric,25.00,Materials and Supplies - Miscellaneous
11-Sep-19,Housing & Community Services,Possessionclaim.Go,Possession claim on line,325.00,Legal Services & Fees
12-Sep-19,Housing & Community Services,Possessionclaim.Go,Possession claim on line,325.00,Legal Services & Fees
12-Sep-19,Housing & Community Services,Possessionclaim.Go,Possession claim on line,325.00,Legal Services & Fees
12-Sep-19,Housing & Community Services,Possessionclaim.Go,Possession claim on line,325.00,Legal Services & Fees
12-Sep-19,Housing & Community Services,Possessionclaim.Go,Possession claim on line,325.00,Legal Services & Fees
12-Sep-19,Housing & Community Services,Possessionclaim.Go,Possession claim on line,325.00,Legal Services & Fees
30-Sep-19,Housing & Community Services,Possessionclaim.Go,Warrant of possession,121.00,Legal Services & Fees
30-Sep-19,Housing & Community Services,Possessionclaim.Go,Possession claim on line,325.00,Legal Services & Fees
30-Sep-19,Housing & Community Services,Possessionclaim.Go,Possession claim on line,325.00,Legal Services & Fees
03-Oct-19,Housing & Community Services,Possessionclaim.Go,Possession claim on line,325.00,Legal Services & Fees
03-Oct-19,Housing & Community Services,Possessionclaim.Go,Possession claim on line,325.00,Legal Services & Fees
03-Oct-19,Housing & Community Services,Possessionclaim.Go,possession claim on line,325.00,Legal Services & Fees
18-Oct-19,Housing & Community Services,Possessionclaim.Go,Possession claim on line,325.00,Legal Services & Fees
18-Oct-19,Housing & Community Services,Possessionclaim.Go,Possession claim on line,325.00,Legal Services & Fees
18-Oct-19,Housing & Community Services,Possessionclaim.Go,Possession claim on line,325.00,Legal Services & Fees
24-Oct-19,Housing & Community Services,Possessionclaim.Go,Possession claim on line,325.00,Legal Services & Fees
24-Oct-19,Housing & Community Services,Possessionclaim.Go,Possession claim on line,325.00,Legal Services & Fees
24-Oct-19,Housing & Community Services,Possessionclaim.Go,Possession claim on line,325.00,Legal Services & Fees
04-Nov-19,Housing & Community Services,Possessionclaim.Go,warrant for possession,121.00,Legal Services & Fees
22-Nov-19,Housing & Community Services,Possessionclaim.Go,Possession claim on line,325.00,Legal Services & Fees
22-Nov-19,Housing & Community Services,Possessionclaim.Go,possession claim on line,325.00,Legal Services & Fees
22-Nov-19,Housing & Community Services,Possessionclaim.Go,possession claim on line,325.00,Legal Services & Fees
22-Nov-19,Housing & Community Services,Possessionclaim.Go,possession claim on line,325.00,Legal Services & Fees
22-Nov-19,Housing & Community Services,Possessionclaim.Go,Possession claim on line,325.00,Legal Services & Fees
22-Nov-19,Housing & Community Services,Possessionclaim.Go,possession claim on line,325.00,Legal Services & Fees
22-Nov-19,Housing & Community Services,Possessionclaim.Go,possession claim on line,325.00,Legal Services & Fees
22-Nov-19,Housing & Community Services,Possessionclaim.Go,possession claim on line,325.00,Legal Services & Fees
22-Nov-19,Housing & Community Services,Premier Inn44521705,Hotel costs for BSU PPO's,85.50,Training Expenses
23-Oct-19,Housing & Community Services,Premier Inn44524570,2 nights to be refunded by HQN/ 1 for IBC to cover Bolton ho,191.67,Training Expenses
06-Nov-19,Housing & Community Services,Public Health England,Training ,90.00,Training Expenses
25-Nov-19,Housing & Community Services,Royal Society Of Chemi,annual membership,140.00,Employee Expenses
13-Nov-19,Housing & Community Services,Sainsburys Petrol,Petrol Unleaded for small plant machinary in the hire shop,19.65,Equipment / Furniture / Materials
22-Nov-19,Housing & Community Services,Sainsburys S/mkt,Staff Milk,0.80,Materials and Supplies - Miscellaneous
13-Nov-19,Housing & Community Services,Sainsburys S/mkts,Tenant Get Together refreshments,6.92,Housing  - other Costs
04-Nov-19,Housing & Community Services,Sainsburys S/mkts,Milk for staff,0.80,Materials and Supplies - Miscellaneous
11-Nov-19,Housing & Community Services,Sainsburys S/mkts,Staff Milk,0.80,Materials and Supplies - Miscellaneous
13-Nov-19,Housing & Community Services,Sainsburys S/mkts,coffee for staff,6.75,Materials and Supplies - Miscellaneous
15-Nov-19,Housing & Community Services,Sainsburys S/mkts,Milk for staff,0.80,Materials and Supplies - Miscellaneous
27-Nov-19,Housing & Community Services,Sainsburys S/mkts,Milk for staff,0.80,Materials and Supplies - Miscellaneous
29-Nov-19,Housing & Community Services,Sainsburys S/mkts,milk for staff,2.25,Materials and Supplies - Miscellaneous
14-Nov-19,Housing & Community Services,Sainsburys S/mkts,RS Count refreshments.,21.46,Specific Campaigns / Projects expenditure
20-Nov-19,Housing & Community Services,Screwfix Direct,2 x external post box,33.32,HRA - Contract Maintenance
12-Nov-19,Housing & Community Services,Suffolk County Council,Birth Cert,11.00,Services for Clients
04-Nov-19,Housing & Community Services,Tesco Store 2748,Salt/Rinse Aid,6.00,Materials and Supplies - Miscellaneous
26-Nov-19,Housing & Community Services,Thetrainline.Com,Training in Norwich with Mobysoft - train to Norwich,19.32,Training Expenses
04-Oct-19,Housing & Community Services,Trainline,RIEN HQN Annual conference train to London x 2 ,153.06,Training Expenses
01-Nov-19,Housing & Community Services,Trainline,Train ticket for CES,107.70,Training Expenses
07-Nov-19,Housing & Community Services,Trainline,Train travel + tube - safety conference,102.00,Training Expenses
08-Nov-19,Housing & Community Services,Trainline,Extra day tube travel plus order amendment ,19.35,Training Expenses
08-Nov-19,Housing & Community Services,Trainline,Train tickets for BSU PPO's,110.55,Training Expenses
11-Nov-19,Housing & Community Services,Trainline,Refund for unused tickets for CES,-96.90,Training Expenses
29-Oct-19,Housing & Community Services,Trainline.Com,Bolton homes - Train from Chester to bolton,20.44,Training Expenses
15-Nov-19,Housing & Community Services,Trainline.Com,Credit for unused train tickets,-86.90,Training Expenses
22-Nov-19,Housing & Community Services,W M Morrison Store,10 x Viakal  Cleaners,16.67,Equipment / Furniture / Materials
18-Nov-19,Housing & Community Services,Waitrose Ltd,Milk for CCC,1.85,Stationery
19-Nov-19,Housing & Community Services,Waitrose Ltd,Milk for CCC,3.70,Stationery
11-Nov-19,Housing & Community Services,Wickes Ipswich,3608720 95mm coving & Adhesive,14.85,Materials and Supplies - Miscellaneous
22-Nov-19,Housing & Community Services,Wilko Retail Limited,Christmas decorations for TIC,77.08,Premises Costs - Miscellaneous
01-Nov-19,Housing & Community Services,Wilko Retail Limited,urgent stationery purchase,7.50,Stationery
11-Nov-19,Housing & Community Services,Wilko.Com,Light bulbs for display cabinets,21.67,Materials and Supplies - Miscellaneous
04-Nov-19,Housing & Community Services,Www.Banneruk.Com,Stationery,68.34,Stationery
21-Nov-19,Housing & Community Services,Www.Banneruk.Com,Stationery,80.82,Stationery
12-Nov-19,Housing & Community Services,Www.Cipfa.Org.Uk,CIPFA membership,332.00,Subscriptions - Service Related
12-Nov-19,Housing & Community Services,Www.Corgi-Direct.Com,CP12 Pads,64.38,Stationery
15-Nov-19,Housing & Community Services,Www.Klipspringer.Com,Probe wipe sachets ,32.40,Equipment / Furniture / Materials
25-Nov-19,Housing & Community Services,Www.Niceiconline.Com,Part P Notifications,28.80,Equipment / Furniture / Materials
07-Nov-19,Housing & Community Services,Wwwstokessaucescouk Vt,First order with new supplier of goods for resale in TIC,239.63,Goods for Resale - Retail
28-Nov-19,People & Governance,Amznmktplace,Double Sided Tape for Print Room use,11.04,Miscellaneous Stock  - Purchases
04-Nov-19,People & Governance,Arts Marketing Ass,AMA Training for staff - Google Ads and Social Media,110.00,Training Expenses
27-Nov-19,People & Governance,Colour Craft Direct Lt,Colour Envelopes for the print room,8.75,Miscellaneous Stock  - Purchases
27-Nov-19,People & Governance,Dart-Charge,Mayor's Car travelling to Arras France Nov2019,4.17,Mayoral Related Expenditure
15-Nov-19,People & Governance,E/tunnel Internet,Euro tunnel,146.12,Miscellaneous Functions & Events
13-Nov-19,People & Governance,Ed Sheeran Made In Suf,MIS prizes for promotions,123.75,Advertising/Publicity
29-Oct-19,People & Governance,Google,Continued Google ad expense for Made in Suffolk exibition,350.00,Advertising/Publicity
27-Nov-19,People & Governance,Google,Ongoing Google Campaign for Made in Suffolk,191.43,Advertising/Publicity
11-Nov-19,People & Governance,Greshams Ipswich Ltd,Refreshments after BKVA Service - Sunday 11 Nov 2019,9.33,Specific Campaigns / Projects expenditure
04-Nov-19,People & Governance,Gtr Anglia Delay Repay,Refund from greater anglia for cancelled train,-24.70,Use Of Public Transport
20-Nov-19,People & Governance,Helloprint,Window Wanderland A5 Leaflets,49.77,Central Area Committee
07-Nov-19,People & Governance,Helloprint,Art Forms in Nature Flyers,68.57,Printing Costs
27-Nov-19,People & Governance,Helloprint,A5 Vinyl Wastesaver Stickers,97.03,Printing Costs
28-Nov-19,People & Governance,Helloprint,A5 Colour Wastesaver Vinyl Stickers,97.03,Printing Costs
05-Nov-19,People & Governance,Helloprint,Promotional pens for International Fraud Awareness Week 2019,106.95,Training Expenses
07-Nov-19,People & Governance,Highstreetvouchers,Retirement Giftcard ,494.25,Specific Campaigns / Projects expenditure
04-Nov-19,People & Governance,Hmv Retail Ltd,Christmas music for FOH,11.63,Advertising/Publicity
11-Nov-19,People & Governance,Ipswich Tourist In,6 Gifts for French Guests / Remembrance,39.37,Specific Campaigns / Projects expenditure
27-Nov-19,People & Governance,Ipswich Tourist In,Arras Gifts for Civic Visit to France Nov2019,57.13,Specific Campaigns / Projects expenditure
04-Nov-19,People & Governance,Isaca,ISACA professional membership,143.38,Employee Expenses
25-Nov-19,People & Governance,Johnsons,Chain Tags on Mayor's Black Jacket,4.17,Mayoral Related Expenditure
07-Nov-19,People & Governance,Machine Mart Ltd,safety tape for committee meetings,0.60,Advertising/Publicity
07-Nov-19,People & Governance,Machine Mart Ltd,safety tape for committee meetings,0.60,Advertising/Publicity
07-Nov-19,People & Governance,Machine Mart Ltd,safety tape for committee meetings,0.60,Advertising/Publicity
07-Nov-19,People & Governance,Machine Mart Ltd,safety tape for committee meetings,0.60,Advertising/Publicity
07-Nov-19,People & Governance,Machine Mart Ltd,safety tape for committee meetings,0.59,Advertising/Publicity
24-Oct-19,People & Governance,Marks&spencer Plc,cake / sandwiches for red Hatters event,72.05,Miscellaneous Functions & Events
28-Oct-19,People & Governance,Marks&spencer Plc,cake sandwiches for Colthorpe event,30.15,Miscellaneous Functions & Events
01-Nov-19,People & Governance,Marks&spencer Plc,cake/sandwiches for visitors from Shenzhen Province,28.55,Miscellaneous Functions & Events
11-Nov-19,People & Governance,Marks&spencer Plc,cake for the afternoon tea for the party from Arras,5.71,Miscellaneous Functions & Events
22-Nov-19,People & Governance,Marks&spencer Plc,cake/sandwiches for light switch on,73.11,Miscellaneous Functions & Events
15-Nov-19,People & Governance,Mbl Seminars,purchase webinars for CPD training for team,380.00,Training Expenses
21-Nov-19,People & Governance,Meredith Service Station,fuel Birmingham trip,29.18,Direct Transport Costs
11-Nov-19,People & Governance,Mermaid Inn,Accommodation for French Guests from Arras / Remembrance,527.83,Specific Campaigns / Projects expenditure
11-Nov-19,People & Governance,Mermaid Inn,Evening Meal for French Guests Sat 9 Nov 2019,56.01,Specific Campaigns / Projects expenditure
20-Nov-19,People & Governance,Paddle.Net* Wordartcom,Wordcloud for awareness sessions and materials,8.25,Training Expenses
08-Nov-19,People & Governance,Sainsburys S/mkt,Sherry/whisky for remembrance Sunday,43.75,Miscellaneous Functions & Events
11-Nov-19,People & Governance,Sainsburys S/mkt,milk water rem Sunday,10.50,Miscellaneous Functions & Events
11-Nov-19,People & Governance,Sainsburys S/mkt,milk/tea /coffee/biscuits/water for remembrance Sunday,27.05,Miscellaneous Functions & Events
07-Nov-19,People & Governance,Shell Ranelagh 390,fuel,36.88,Direct Transport Costs
04-Nov-19,People & Governance,Signs For You Ltd,Laminating for an external job which we recharged on,54.48,Miscellaneous Stock  - Purchases
04-Nov-19,People & Governance,Signs For You Ltd,Mesh Pond Banners for Christchurch Park for MiS Exhibit,231.90,Printing Costs
13-Nov-19,People & Governance,Sp * My Cupcake Heaven,Promotional toppers for International Fraud Awareness Week,30.24,Training Expenses
23-Oct-19,People & Governance,Spring Road,fuel,41.80,Direct Transport Costs
19-Nov-19,People & Governance,Spring Road,fuel,40.29,Direct Transport Costs
08-Nov-19,People & Governance,The Ostler Ltd,Panto Press launch horse and carriage deposit,85.00,Advertising/Publicity
13-Nov-19,People & Governance,The Ostler Ltd,Panto Press launch horse and carriage full payment,514.00,Advertising/Publicity
15-Nov-19,People & Governance,Trainline.Com,travel for course in London. 0% VAT only on booking fees,78.82,Transport Costs - Miscellaneous
04-Nov-19,People & Governance,Trainline.Com,Train tickets for ACFS course ,76.89,Use Of Public Transport
22-Nov-19,People & Governance,Waitrose Ltd,fuel for mayoral car,2.29,Direct Transport Costs
24-Oct-19,People & Governance,Waitrose Ltd,milk/ coffee for parlour,4.34,Miscellaneous Functions & Events
28-Oct-19,People & Governance,Waitrose Ltd,milk/biscuits for poppy launch,3.68,Miscellaneous Functions & Events
07-Nov-19,People & Governance,Waitrose Ltd,milk/ biscuits St Joseph's School Council visit,2.68,Miscellaneous Functions & Events
07-Nov-19,People & Governance,Waitrose Ltd,squash/biscuits for rainbows event,5.25,Miscellaneous Functions & Events
08-Nov-19,People & Governance,Waitrose Ltd,biscuits for beavers visit to the Mayors Parlour,1.01,Miscellaneous Functions & Events
18-Nov-19,People & Governance,Waitrose Ltd,squash/biscuits for Ipswich High School event,4.29,Miscellaneous Functions & Events
28-Oct-19,People & Governance,Wh Smith,Double Sided sticky tape for print room use,5.63,Miscellaneous Stock  - Purchases
01-Nov-19,People & Governance,Www.Banneruk.Com,Canon inks Mo_Corn Exchange,46.03,Computer Consumables and other Minor IT costs
01-Nov-19,People & Governance,Www.Banneruk.Com,Canon inks Mo_Corn Exchange,203.01,Computer Consumables and other Minor IT costs
01-Nov-19,People & Governance,Www.Banneruk.Com,HP304XL Blk ink ,21.62,Computer Consumables and other Minor IT costs
27-Nov-19,People & Governance,Www.Neopost.Co.Uk,Sealing Fluid for the folder inserter machines,84.38,Miscellaneous Stock  - Purchases
29-Oct-19,People & Governance,Www.Paper.Co.Uk,Paper required for the print room,94.62,Miscellaneous Stock  - Purchases
05-Nov-19,People & Governance,Www.Paper.Co.Uk,Paper stock required for the print room.,344.23,Miscellaneous Stock  - Purchases
14-Nov-19,People & Governance,Www.Paper.Co.Uk,Carbon Paper for the Print room use,36.30,Miscellaneous Stock  - Purchases
15-Nov-19,People & Governance,Www.Paper.Co.Uk,Wide format paper rolls for the print room,119.08,Miscellaneous Stock  - Purchases
21-Nov-19,People & Governance,Www.Paper.Co.Uk,Paper stock for the Print Room use,132.30,Miscellaneous Stock  - Purchases
25-Nov-19,People & Governance,Www.Paper.Co.Uk,Paper supply for the print room,231.98,Miscellaneous Stock  - Purchases
28-Nov-19,People & Governance,Www.Presco-Uk.Com,Plastic Free Binding Covers for the Print Room,43.49,Miscellaneous Stock  - Purchases
04-Nov-19,People & Governance,Www.Purelypaper.Co.Uk,Paper stock required for the print room,123.95,Miscellaneous Stock  - Purchases
07-Nov-19,People & Governance,Www.Stannp.Com,Ukulele Orchestra Direct Mail,315.70,Advertising/Publicity
